bitfinex-derivatives/quotes_ETHF0:USTF0_20250404
["timestamp","ask_amount","ask_price","bid_price","bid_amount"]
[1743780799636,0.00831486,1806.8,1806.7,1.10752]
[1743780799933,4.86e-06,1806.8,1806.7,4.31532]
[1743780800136,4.86e-06,1806.8,1806.7,14.10603874]
[1743780800440,4.86e-06,1806.8,1806.7,50.98902]
[1743780800632,4.86e-06,1806.8,1806.7,47.78122]
[1743780800939,4.86e-06,1806.8,1806.6,3.0387]
[1743780800940,4.86e-06,1806.8,1806.5,0.00831486]
[1743780801534,4.86e-06,1806.8,1806.5,1.11592486]
[1743780801737,4.86e-06,1806.8,1806.6,3.2078]
[1743780801936,1.10748486,1806.8,1806.6,3.2078]
[1743780802241,3.3285,1806.7,1806.5,0.00831486]
[1743780802638,1.10758,1806.6,1806.5,0.00831486]
[1743780802836,3.3285,1806.7,1806.5,0.00831486]
[1743780803035,1.10758,1806.6,1806.5,0.00831486]
[1743780803746,3.60758,1806.6,1806.5,0.00831486]
[1743780804136,2.94886228,1806.6,1806.1,3.2078]
[1743780804330,1.10782,1806.2,1805.9,3.2078]
[1743780804532,2.7741,1806.5,1806.1,3.2078]
[1743780804740,4.86e-06,1806.8,1806.4,4.31546]
[1743780805032,4.86e-06,1806.8,1806.6,3.2078]
[1743780805336,4.86e-06,1806.8,1806.6,4.31534]
[1743780805539,4.86e-06,1806.8,1806.6,4.31535]
[1743780805734,4.86e-06,1806.8,1806.6,3.2078]
[1743780805938,4.86e-06,1806.8,1806.5,0.00831486]
[1743780805939,1.10758,1806.6,1806.5,0.00831486]
[1743780806336,1.10758,1806.6,1806.0,3.2078]
[1743780806337,1.10771,1806.4,1806.1,1.10788]
[1743780806532,2.5,1806.6,1806.0,3.2078]
[1743780806533,3.2948,1806.5,1806.0,3.2078]
[1743780806730,1.10786,1806.2,1805.8,6.3247]
[1743780807039,2.9729,1806.6,1806.0,3.2078]
[1743780807235,1.10778,1806.3,1806.0,4.3157]
[1743780807430,1.10795,1806.0,1805.7,1.1081]
[1743780807635,1.10795,1806.0,1805.6,3.2078]
[1743780807636,3.1003,1805.9,1805.6,6.6284]
[1743780807831,3.1003,1805.9,1805.8,3.2078]
[1743780808140,3.1003,1805.9,1805.7,1.11640486]
[1743780808332,4.20831,1805.9,1805.7,0.00831486]
[1743780808534,1.10807,1805.8,1805.7,0.00831486]
[1743780808732,3.1003,1805.8,1805.7,0.00831486]
[1743780808937,4.20837,1805.8,1805.7,0.00831486]
[1743780809238,3.1003,1805.8,1805.7,0.00831486]
[1743780809436,3.1003,1805.8,1805.7,1.11644486]
[1743780809637,3.1003,1805.8,1805.7,4.53704486]
[1743780809942,3.1003,1805.8,1805.7,3.42891486]
[1743780810241,4.18249,1806.1,1805.7,44.22891486]
[1743780810434,3.1586,1806.0,1805.8,3.2078]
[1743780810634,4.26661,1806.0,1805.7,45.33703486]
[1743780810846,3.1586,1806.0,1805.7,44.22891486]
[1743780811139,3.1586,1806.0,1805.9,1.10801]
[1743780811336,2.9729,1806.6,1805.8,5.97793]
[1743780811642,4.26638,1806.3,1806.0,1.1079]
[1743780811833,3.1586,1806.3,1805.9,3.2078]
[1743780812031,3.1586,1806.3,1806.1,3.2078]
[1743780812548,3.1586,1806.3,1806.1,4.31566]
[1743780813039,3.1586,1806.3,1806.2,1.10782]
[1743780813230,2.9282,1806.7,1806.2,1.10782]
[1743780813433,3.1262,1806.6,1806.5,4.31544]
[1743780814243,4.86e-06,1806.8,1806.7,1.10752]
[1743780814438,4.86e-06,1806.8,1806.7,4.31532]
[1743780815040,4.86e-06,1806.8,1806.7,45.11532]
[1743780815441,4.86e-06,1806.8,1806.7,47.61532]
[1743780817838,4.86e-06,1806.8,1806.7,45.11532]
[1743780818040,4.86e-06,1806.8,1806.7,4.31532]
[1743780818238,4.86e-06,1806.8,1806.7,3.2078]
[1743780818542,4.50179486,1806.8,1806.6,5.053]
[1743780818743,1.10766,1806.5,1806.2,1.1078]
[1743780818938,3.3002,1806.4,1806.0,8.2598]
[1743780819140,4.4079,1806.4,1806.1,44.0078]
[1743780819334,3.3002,1806.4,1806.1,44.0078]
[1743780819534,1.10782,1806.2,1806.1,40.8]
[1743780819739,3.3002,1806.4,1806.1,40.8]
[1743780820237,4.40792,1806.4,1806.1,40.8]
[1743780820549,9.008,1806.4,1805.7,5.05931486]
[1743780820751,11.20671,1806.3,1805.7,1.11643486]
[1743780821045,1.10801,1805.9,1805.8,40.8]
[1743780821539,1.10801,1805.9,1805.7,0.00831486]
[1743780821745,4.40827,1805.8,1805.7,0.00831486]
[1743780822145,3.3002,1805.8,1805.7,40.8]
[1743780822441,3.3002,1805.8,1805.7,41.90813]
[1743780822641,3.3002,1805.8,1805.7,45.11593]
[1743780822938,2.8319,1806.3,1806.2,1.10782]
[1743780823139,0.5544,1806.6,1806.1,3.2078]
[1743780823333,3.95604,1806.7,1806.5,1.10761]
[1743780823643,2.8485,1806.7,1806.1,3.21611486]
[1743780823842,1.10782,1806.2,1806.1,0.00831486]
[1743780824037,1.54259228,1806.2,1806.1,0.00831486]
[1743780824240,3.60782,1806.2,1806.1,0.00831486]
[1743780824549,1.10803,1805.9,1805.7,3.2078]
[1743780824741,3.289,1805.8,1805.6,1.10818]
[1743780824932,3.289,1805.8,1805.5,3.2078]
[1743780825439,3.289,1805.8,1805.6,1.10817]
[1743780825642,3.29731486,1805.8,1805.7,1.10813]
[1743780825838,3.29731486,1805.8,1805.7,4.31593]
[1743780826441,3.29731486,1805.8,1805.7,3.2078]
[1743780826647,3.29731486,1805.8,1805.7,4.31593]
[1743780827038,3.29731486,1805.8,1805.7,3.2078]
[1743780827235,3.29731486,1805.8,1805.7,4.31593]
[1743780827439,0.00831486,1805.8,1805.7,4.31593]
[1743780827640,1.10784,1806.2,1805.7,4.31593]
[1743780827641,3.2109,1806.2,1805.7,6.81593]
[1743780827939,1.10789,1806.1,1805.9,1.10798]
[1743780828135,4.39907,1806.0,1805.8,3.2078]
[1743780828339,3.2911,1806.0,1805.8,3.2078]
[1743780828548,3.2911,1806.0,1805.8,4.31584]
[1743780828743,1.10801,1805.9,1805.8,3.2078]
[1743780828941,3.2911,1806.0,1805.7,0.00831486]
[1743780828942,1.10807,1805.8,1805.7,0.00831486]
[1743780829140,3.2911,1805.8,1805.7,0.00831486]
[1743780829346,4.39917,1805.8,1805.7,0.00831486]
[1743780829640,4.39917,1805.8,1805.7,3.21611486]
[1743780829844,3.2911,1805.8,1805.7,0.00831486]
[1743780830243,3.2911,1805.8,1805.7,40.80831486]
[1743780830441,4.39917,1805.8,1805.7,40.80831486]
[1743780830638,3.2911,1805.8,1805.7,41.91644486]
[1743780830842,3.2911,1805.8,1805.7,40.80831486]
[1743780831146,3.2911,1805.8,1805.7,45.12424486]
[1743780831343,4.39917,1805.8,1805.7,44.01611486]
[1743780831550,4.39917,1805.8,1805.7,40.80831486]
[1743780832042,10.10697,1805.8,1805.7,0.00831486]
[1743780832248,6.89917,1805.8,1805.7,0.00831486]
[1743780832743,3.2911,1805.8,1805.7,1.11644486]
[1743780833344,3.2911,1805.8,1805.7,44.72844486]
[1743780833751,3.2911,1805.8,1805.7,41.91644486]
[1743780834138,3.2911,1805.8,1805.7,44.71504486]
[1743780834553,4.13292486,1806.1,1805.9,1.10798]
[1743780834749,3.02501486,1806.1,1806.0,1.10795]
[1743780834942,3.02501486,1806.1,1805.8,5.97794]
[1743780834943,1.11621486,1806.1,1805.9,1.10798]
[1743780835147,0.00831486,1806.1,1806.0,1.10795]
[1743780835342,0.00831486,1806.1,1805.8,3.2078]
[1743780835546,1.10805,1805.9,1805.7,41.91641486]
[1743780835744,0.00831486,1806.1,1805.7,44.01611486]
[1743780835950,1.10807,1805.8,1805.7,40.80831486]
[1743780836145,1.10807,1805.8,1805.7,0.00831486]
[1743780836347,3.60807,1805.8,1805.7,0.00831486]
[1743780836656,1.10831,1805.4,1805.3,40.8]
[1743780837051,2.6535,1805.7,1805.3,40.8]
[1743780837247,3.76165,1805.7,1805.4,3.2078]
[1743780837553,2.6535,1805.7,1805.5,1.10823]
[1743780837849,1.10819,1805.6,1805.4,3.2078]
[1743780838055,2.8265,1805.9,1805.4,4.31611]
[1743780838253,2.7162,1805.6,1805.5,3.2078]
[1743780838851,3.2144,1806.0,1805.5,3.2078]
[1743780839150,3.2078,1805.8,1805.3,40.8]
[1743780839351,2.7162,1805.7,1805.3,40.8]
[1743780839550,2.7162,1805.7,1805.4,4.31606]
[1743780839750,2.7162,1805.7,1805.4,2.8567]
[1743780840053,2.7162,1805.7,1805.6,4.31599]
[1743780840449,0.00831486,1806.1,1805.6,6.81599]
[1743780840653,2.68331486,1806.1,1806.0,3.2078]
[1743780840853,2.68331486,1806.1,1806.0,4.31575]
[1743780841053,2.68331486,1806.1,1806.0,3.2078]
[1743780841458,2.68331486,1806.1,1805.8,3.2078]
[1743780841653,3.79120486,1806.1,1806.0,3.2078]
[1743780841847,1.10807,1805.8,1805.7,5.8534]
[1743780842055,1.10819,1805.6,1805.5,3.2078]
[1743780842261,2.77003,1805.9,1805.5,3.2078]
[1743780842447,2.675,1805.8,1805.5,1.10825]
[1743780842649,1.10821,1805.6,1805.5,3.2078]
[1743780842848,2.675,1805.8,1805.5,3.2078]
[1743780843048,2.675,1805.8,1805.7,1.10813]
[1743780843551,2.675,1805.8,1805.7,4.31593]
[1743780845055,0.00831486,1806.1,1806.0,1.10795]
[1743780845260,2.62401486,1806.1,1806.0,1.10795]
[1743780845755,2.62401486,1806.1,1806.0,3.80375]
[1743780845955,2.62401486,1806.1,1806.0,1.10795]
[1743780846354,2.62401486,1806.1,1805.9,7.01157]
[1743780846558,2.62401486,1806.1,1806.0,1.10795]
[1743780846854,0.00831486,1806.1,1806.0,1.10795]
[1743780847059,0.00831486,1806.1,1806.0,3.93075]
[1743780847454,17.76061261,1806.8,1806.7,1.10752]
[1743780847648,17.76061261,1806.8,1806.7,4.31532]
[1743780847649,17.20621261,1806.8,1806.7,4.31532]
[1743780847955,17.20621261,1806.8,1806.7,45.11532]
[1743780848157,18.31367261,1806.8,1806.7,40.8]
[1743780848352,20.81367261,1806.8,1806.7,40.8]
[1743780848558,19.70621261,1806.8,1806.6,0.00831486]
[1743780848858,1.1078,1806.3,1806.1,3.2078]
[1743780849059,2.7624,1806.2,1806.1,45.11565]
[1743780849365,2.76895,1806.6,1806.1,44.0078]
[1743780849561,2.76899,1806.6,1806.2,1.10778]
[1743780849760,11.29061,1806.7,1806.3,1.10771]
[1743780849962,2.76903,1806.6,1806.2,1.10778]
[1743780850259,2.76903,1806.6,1806.1,44.0078]
[1743780850462,2.76903,1806.6,1806.2,1.10777]
[1743780850670,2.6586,1806.5,1806.4,1.1077]
[1743780851260,2.6586,1806.5,1806.1,44.0078]
[1743780851261,5.1586,1806.5,1806.1,44.0078]
[1743780851468,1.10782,1806.2,1806.1,3.2078]
[1743780851867,1.10782,1806.2,1806.1,4.31565]
[1743780852165,1.10782,1806.2,1806.1,3.2078]
[1743780852366,1.10795,1806.0,1805.9,40.8]
[1743780852562,3.88551,1806.1,1805.9,40.8]
[1743780852763,3.88551,1806.1,1805.9,45.11575]
[1743780852764,1.10795,1806.0,1805.9,45.11575]
[1743780852963,3.88555,1806.0,1805.9,41.90795]
[1743780853165,2.7776,1806.0,1805.9,41.90795]
[1743780853660,1.10781,1806.3,1805.9,44.0078]
[1743780853866,3.88541,1806.3,1806.0,2.6005]
[1743780854168,2.7776,1806.3,1806.0,3.7084]
[1743780854367,2.7776,1806.3,1806.0,3.70841]
[1743780854570,1.10785,1806.2,1806.0,3.70841]
[1743780854765,2.7776,1806.3,1806.0,3.70841]
[1743780854766,2.7776,1806.1,1806.0,2.6005]
[1743780855370,8.5218,1806.7,1806.0,2.6005]
[1743780855572,2.5939,1806.4,1806.2,4.31559]
[1743780855767,3.70163,1806.4,1806.3,2.74]
[1743780855969,8.5218,1806.7,1806.3,2.74]
[1743780856166,2.5939,1806.6,1806.4,3.2078]
[1743780856579,1.10764,1806.5,1806.4,3.2078]
[1743780856808,1.10782,1806.2,1806.1,5.9478]
[1743780857001,2.5939,1806.4,1806.1,5.9478]
[1743780857190,2.5939,1806.4,1806.0,2.6115]
[1743780857497,1.10789,1806.1,1805.9,45.11579]
[1743780857700,1.10778,1806.3,1806.1,1.10787]
[1743780857894,3.70172,1806.2,1806.1,3.2078]
[1743780858089,1.10769,1806.5,1806.1,3.2078]
[1743780858384,1.10768,1806.5,1806.3,4.31556]
[1743780858581,1.10768,1806.5,1806.4,2.628]
[1743780859172,1.1077,1806.4,1806.3,3.2078]
[1743780859572,2.8168,1806.6,1806.3,3.2078]
[1743780859772,2.8168,1806.6,1806.5,4.31544]
[1743780860277,3.92438,1806.6,1806.5,3.2078]
[1743780860474,1.10777,1806.3,1806.1,6.0546]
[1743780860678,1.10776,1806.4,1806.1,6.94365]
[1743780860875,2.8168,1806.3,1806.1,5.8358]
[1743780861076,1.10782,1806.2,1806.1,3.2078]
[1743780861274,3.92461,1806.3,1806.1,3.2078]
[1743780861782,3.92461,1806.3,1805.9,43.428]
[1743780861783,8.5246,1806.3,1805.1,3.2078]
[1743780862077,1.10814,1805.7,1805.2,2.77109]
[1743780862377,1.10814,1805.7,1805.3,1.10838]
[1743780862378,2.5854,1805.6,1805.3,1.10838]
[1743780862675,2.5854,1805.6,1805.3,1.10833]
[1743780862877,2.5854,1805.6,1805.2,41.90838]
[1743780862878,1.10832,1805.4,1805.2,41.90838]
[1743780863080,3.69378,1805.3,1805.2,40.8]
[1743780864177,1.10861,1805.0,1804.8,1.10866]
[1743780864376,2.5854,1804.9,1804.7,8.4151821]
[1743780864581,1.10868,1804.8,1804.7,8.4151821]
[1743780864775,1.66308,1804.8,1804.7,8.4151821]
[1743780864970,7.00258,1804.8,1804.7,2.49025154]
[1743780865179,12.35348,1804.8,1804.7,2.49025154]
[1743780865478,1.10881,1804.6,1804.5,16.10312004]
[1743780865678,2.7723,1804.5,1803.9,2.8107]
[1743780865882,3.2078,1804.1,1803.5,3.2078]
[1743780866182,1.10942,1803.6,1803.5,3.2078]
[1743780866779,3.0552,1803.6,1803.5,3.2078]
[1743780866979,3.0552,1803.6,1803.4,56.90312004]
[1743780866980,0.5552,1803.8,1803.6,1.10942]
[1743780867282,7.72001486,1804.0,1803.7,1.10935]
[1743780867482,1.10924,1803.9,1803.5,2.8107]
[1743780867672,6.61081486,1804.0,1803.5,2.8107]
[1743780867673,6.61081486,1804.0,1803.5,3.92018]
[1743780867877,7.06080438,1804.0,1803.5,2.8107]
[1743780868183,1.10934,1803.8,1803.5,2.8107]
[1743780868377,7.06080438,1804.0,1803.5,2.8107]
[1743780868778,2.8231,1803.9,1803.5,2.8107]
[1743780868980,1.10942,1803.6,1803.5,2.8107]
[1743780869277,3.2078,1803.8,1803.4,56.90312004]
[1743780869481,1.10939,1803.7,1803.4,59.53982004]
[1743780869685,2.8231,1803.7,1803.4,59.53982004]
[1743780869885,1.10948,1803.5,1803.4,59.53982004]
[1743780870076,1.10948,1803.5,1803.4,56.90312004]
[1743780870279,1.10948,1803.5,1803.4,40.8]
[1743780870478,2.5,1803.5,1803.0,3.2078]
[1743780870779,1.10961,1803.3,1803.1,2.7015]
[1743780870980,2.5884,1803.4,1803.2,40.8]
[1743780871186,1.10947,1803.6,1803.3,2.7015]
[1743780871481,3.69778,1803.7,1803.4,1.10953]
[1743780871685,3.69778,1803.7,1803.5,2.7015]
[1743780871877,3.69778,1803.7,1803.6,40.8]
[1743780872486,9.40558,1803.7,1803.6,40.8]
[1743780872873,6.90558,1803.7,1803.6,40.8]
[1743780873587,9.40558,1803.7,1803.6,40.8]
[1743780874884,9.40558,1803.7,1803.2,2.7015]
[1743780874885,1.10961,1803.3,1803.2,2.7015]
[1743780875385,2.6864,1803.5,1803.2,5.9093]
[1743780875592,2.6864,1803.7,1803.4,3.2078]
[1743780875888,1.10942,1803.6,1803.5,40.8]
[1743780876778,1.1094,1803.7,1803.5,40.8]
[1743780876984,1.10936,1803.7,1803.6,2.7169]
[1743780877283,1.10942,1803.6,1803.5,40.8]
[1743780877484,1.10961,1803.3,1803.2,2.7169]
[1743780878085,1.10961,1803.3,1803.2,43.5169]
[1743780878487,2.7742,1803.2,1802.7,5.8079]
[1743780878687,1.10985,1802.9,1802.8,2.7169]
[1743780878883,1.10991,1802.8,1802.7,3.2078]
[1743780879486,3.94361,1802.8,1802.7,3.2078]
[1743780879686,1.11022,1802.3,1802.2,2.6978]
[1743780879877,1.1102,1802.4,1802.1,3.2078]
[1743780880086,1.1102,1802.4,1802.3,3.2078]
[1743780880287,1.11013,1802.5,1802.3,45.11802]
[1743780880488,1.11016,1802.4,1802.3,40.8]
[1743780881685,1.11014,1802.5,1802.3,41.9102]
[1743780881891,1.1101,1802.5,1802.4,2.7864]
[1743780883189,1.1101,1802.5,1802.4,3.89654]
[1743780883385,0.00831486,1802.9,1802.5,1.11007]
[1743780883386,1.11001,1802.7,1802.5,1.11007]
[1743780883586,1.11001,1802.7,1802.6,2.7125]
[1743780883986,0.00831486,1802.9,1802.6,2.7125]
[1743780884286,1.11821486,1802.9,1802.7,1.10996]
[1743780884497,1.11821486,1802.9,1802.8,2.7125]
[1743780884891,1.11821486,1802.9,1802.5,5.8001]
[1743780884892,1.11004,1802.6,1802.5,5.8001]
[1743780885089,1.10999,1802.7,1802.5,6.91017]
[1743780885289,1.10994,1802.8,1802.6,1.11004]
[1743780885492,1.11822486,1802.9,1802.7,3.2078]
[1743780885689,0.00831486,1802.9,1802.7,3.2078]
[1743780885886,0.00831486,1802.9,1802.7,4.31775]
[1743780886090,0.00831486,1802.9,1802.8,1.10991]
[1743780886385,1.11816486,1802.9,1802.8,2.8436]
[1743780886993,1.10998,1802.7,1802.5,2.5923]
[1743780887195,1.10998,1802.7,1802.6,2.8436]
[1743780887393,1.11016,1802.4,1802.3,40.8]
[1743780887588,1.11014,1802.5,1802.3,40.8]
[1743780887795,1.1101,1802.5,1802.4,2.8436]
[1743780887987,6.95714,1802.8,1802.4,6.0514]
[1743780888189,1.11002,1802.7,1802.5,1.11006]
[1743780888387,0.00831486,1802.9,1802.6,2.8436]
[1743780888595,0.00831486,1802.9,1802.8,1.10991]
[1743780888791,1.11818486,1802.9,1802.8,1.10991]
[1743780888993,0.00831486,1802.9,1802.8,1.10991]
[1743780889198,0.00831486,1802.9,1802.8,3.80301]
[1743780890091,1.66472,1803.5,1803.3,1.10958]
[1743780890295,1.10948,1803.5,1803.4,2.6931]
[1743780890694,1.10947,1803.6,1803.4,44.60264]
[1743780890895,3.7797,1803.7,1803.5,1.10948]
[1743780891094,3.7797,1803.7,1803.6,2.6931]
[1743780891295,2.77371,1803.5,1802.9,3.2078]
[1743780891596,3.2078,1803.0,1801.7,0.45220943]
[1743780891786,3.2078,1802.2,1801.5,2.77674]
[1743780891987,3.2078,1802.2,1802.0,1.11038]
[1743780892192,3.2078,1802.2,1802.1,1.11034]
[1743780892391,3.2078,1802.2,1800.5,54.12437485]
[1743780892392,3.2078,1802.4,1802.2,1.11024]
[1743780892603,3.80032,1802.5,1802.3,1.11021]
[1743780892604,4.31791,1802.5,1802.3,1.11021]
[1743780892801,4.32622486,1802.5,1802.3,1.11021]
[1743780893002,1.11016,1802.4,1802.0,3.2078]
[1743780893299,2.6902,1802.4,1802.2,1.11025]
[1743780893600,2.6902,1802.4,1801.8,5.61207]
[1743780893794,3.80038,1802.4,1801.9,1.11047]
[1743780893996,2.6902,1802.4,1802.1,3.2078]
[1743780894298,5.98204,1803.2,1802.3,3.2078]
[1743780894599,5.98204,1803.2,1802.4,2.77541]
[1743780894600,3.2078,1802.9,1802.4,2.77541]
[1743780894797,2.6902,1803.2,1802.7,3.2078]
[1743780894798,3.2078,1803.1,1802.7,3.2078]
[1743780895099,3.2078,1803.1,1802.8,43.5396]
[1743780895296,2.6902,1803.2,1802.9,2.7674]
[1743780895507,0.00831486,1803.1,1803.0,1.10977]
[1743780895821,0.00831486,1803.1,1802.8,40.80831486]
[1743780896008,1.10983,1803.0,1802.8,40.80831486]
[1743780896208,6.93995,1802.9,1802.8,40.80831486]
[1743780897099,8.3301,1802.9,1802.2,5.033]
[1743780897300,1.11012,1802.5,1802.2,6.14325]
[1743780897495,3.2078,1802.7,1802.3,40.8]
[1743780897700,2.6223,1802.6,1802.3,41.91021]
[1743780897899,2.6223,1802.6,1802.3,40.8]
[1743780898102,4.31782,1802.7,1802.5,1.11008]
[1743780898291,2.6466,1802.8,1802.3,40.8]
[1743780898496,4.31775,1802.8,1802.6,1.11003]
[1743780898704,3.2078,1803.0,1802.5,3.2078]
[1743780899006,1.11,1802.7,1802.4,5.033]
[1743780899201,3.2078,1802.8,1802.4,6.14313]
[1743780899400,3.2078,1802.6,1802.3,40.8]
[1743780899705,2.6994,1802.5,1802.3,41.91019]
[1743780899903,1.11023,1802.3,1802.1,2.6116]
[1743780900205,5.9072,1802.4,1801.7,3.2078]
[1743780900401,3.2078,1802.9,1802.3,5.98336]
[1743780900599,0.5552,1803.3,1802.7,3.2078]
[1743780900600,6.4735,1803.3,1802.7,3.2078]
[1743780900799,1.10974,1803.1,1802.8,1.10987]
[1743780901108,2.70771486,1803.2,1802.6,2.77506]
[1743780901307,3.81741486,1803.2,1802.9,1.10982]
[1743780901507,3.2078,1803.1,1802.7,2.77494]
[1743780901713,2.70771486,1803.2,1803.1,1.10973]
[1743780901903,0.00831486,1803.2,1803.1,1.10973]
[1743780902106,0.00831486,1803.2,1802.6,5.9829]
[1743780902403,4.31757,1803.1,1802.6,5.98281]
[1743780902603,3.2078,1803.0,1802.8,1.10989]
[1743780902804,1.10982,1803.0,1802.8,1.1099]
[1743780902994,1.11006,1802.6,1802.4,5.3466]
[1743780903202,3.2078,1802.5,1802.4,2.6555]
[1743780903404,1.11004,1802.6,1802.4,3.76562]
[1743780903706,4.31764,1803.0,1802.5,1.1101]
[1743780903905,3.2078,1803.0,1802.5,2.77524]
[1743780904107,3.2078,1803.0,1802.9,1.10985]
[1743780904308,3.2078,1803.0,1802.8,1.10986]
[1743780904514,1.10987,1802.9,1802.7,1.10995]
[1743780904698,4.31764,1803.0,1802.7,1.10992]
[1743780904901,4.31764,1803.0,1802.5,5.53174]
[1743780904902,3.2078,1803.0,1802.6,2.7751]
[1743780905102,2.7201,1803.1,1802.7,2.77494]
[1743780905303,0.00831486,1803.2,1803.1,1.10973]
[1743780906207,1.10988,1802.9,1802.5,5.9643]
[1743780906415,4.31765,1803.0,1802.5,2.7565]
[1743780906705,3.2078,1803.0,1802.5,2.7565]
[1743780906906,3.82997,1802.9,1802.7,1.10996]
[1743780907414,3.2078,1803.0,1802.9,1.10985]
[1743780907609,3.2078,1803.0,1802.6,2.77504]
[1743780907814,3.2078,1803.0,1802.9,1.1098]
[1743780908014,3.2078,1803.0,1802.4,5.9832]
[1743780908314,3.2078,1802.8,1802.3,2.7327]
[1743780908510,4.31788,1802.6,1802.4,1.11012]
[1743780908915,2.7647,1802.5,1802.4,1.11012]
[1743780909413,3.87481,1802.5,1802.3,1.11021]
[1743780909616,3.2078,1802.4,1801.9,5.1846]
[1743780909815,3.2078,1802.2,1801.9,2.5773]
[1743780910015,2.7647,1802.3,1802.1,1.11034]
[1743780910213,3.21611486,1802.2,1802.0,1.11036]
[1743780910511,2.8299,1802.1,1801.9,1.11047]
[1743780910713,2.8299,1802.1,1801.8,40.8]
[1743780911010,1.11047,1801.9,1801.8,40.8]
[1743780911520,1.11058,1801.8,1801.4,1.11073]
[1743780911718,3.2078,1801.6,1801.3,1.1108]
[1743780911913,2.8299,1801.5,1801.3,1.11081]
[1743780912109,3.2078,1801.4,1801.1,6.13991]
[1743780912317,2.8299,1801.3,1801.2,1.1109]
[1743780912719,3.2078,1801.6,1801.5,1.11071]
[1743780913016,3.2078,1801.6,1801.4,1.11074]
[1743780913217,2.8299,1801.5,1801.2,40.8]
[1743780913522,6.0377,1801.5,1801.3,1.11084]
[1743780913712,1.11082,1801.4,1801.2,40.8]
[1743780913912,2.6342,1801.3,1801.2,40.8]
[1743780914216,2.6342,1801.3,1801.2,41.9109]
[1743780914415,5.842,1801.3,1801.2,40.8]
[1743780914612,6.3972,1801.3,1800.8,3.2078]
[1743780914812,3.2078,1801.1,1801.0,1.11102]
[1743780915317,3.2078,1801.1,1801.0,40.8]
[1743780915514,3.2078,1801.1,1800.8,1.1111]
[1743780915716,2.6342,1801.0,1800.8,1.11111]
[1743780916019,3.2078,1800.9,1800.3,16.10312004]
[1743780916217,3.2078,1800.7,1800.3,18.89672004]
[1743780916425,3.2078,1800.5,1800.3,16.10312004]
[1743780916615,2.8275,1800.4,1800.3,16.10312004]
[1743780917018,5.3275,1800.4,1800.3,16.10312004]
[1743780917217,6.43889,1800.4,1800.3,11.84802004]
[1743780918217,6.43889,1800.4,1800.3,3.33802004]
[1743780920212,1.11158,1800.1,1800.0,24.15470227]
[1743780920421,4.31938,1800.1,1800.0,10.34977227]
[1743780920612,6.81938,1800.1,1800.0,5.96187046]
[1743780920812,1.1117,1799.9,1799.8,31.60690143]
[1743780921017,9.3495,1799.9,1799.8,30.38780143]
[1743780921213,6.84070834,1799.9,1799.8,19.19431103]
[1743780921420,6.84070834,1799.9,1799.8,12.31411088]
[1743780921722,6.84070834,1799.9,1799.8,3.41350273]
[1743780922027,1.11176,1799.8,1799.7,37.18716911]
[1743780922422,3.63296834,1799.8,1799.7,37.18716911]
[1743780922826,1.11195,1799.5,1799.4,21.09806188]
[1743780923528,3.63315834,1799.5,1799.4,21.09806188]
[1743780923725,4.18915834,1799.5,1799.4,12.69495559]
[1743780923926,1.11213,1799.2,1799.1,26.02075714]
[1743780924127,4.31993,1799.2,1799.1,24.81407714]
[1743780924333,4.34113834,1799.2,1799.1,24.81407714]
[1743780924635,1.13333834,1799.2,1799.1,24.81407714]
[1743780924825,1.13333834,1799.2,1799.1,35.926082]
[1743780925730,0.02120834,1799.2,1799.1,35.926082]
[1743780925930,1.13333834,1799.2,1799.1,35.926082]
[1743780926122,0.02120834,1799.2,1799.1,40.246082]
[1743780926523,1.13333834,1799.2,1799.1,24.81407714]
[1743780926934,1.13333834,1799.2,1799.0,2.7942]
[1743780926935,1.1122,1799.1,1799.0,2.7942]
[1743780927130,4.32,1799.1,1799.0,1.6316]
[1743780927433,1.11257,1798.5,1798.4,2.5312]
[1743780927729,2.78111,1798.7,1798.4,13.64320486]
[1743780927927,1.11257,1798.5,1798.4,40.8]
[1743780928135,2.78144,1798.5,1797.9,6.72431]
[1743780928428,0.02120834,1798.2,1798.1,1.11281]
[1743780928630,0.556,1799.0,1798.1,44.0078]
[1743780928631,1.11248,1798.7,1798.1,44.0078]
[1743780928827,0.556,1799.0,1798.5,1.11255]
[1743780929131,1.11246,1798.7,1798.5,1.11255]
[1743780929322,1.11246,1798.7,1798.6,11.11200486]
[1743780929729,1.11242,1798.8,1798.6,16.11200486]
[1743780929925,1.1125,1798.6,1798.5,3.2078]
[1743780930130,3.2078,1798.9,1798.5,11.11200486]
[1743780930326,1.11244,1798.7,1798.6,2.7231]
[1743780930528,1.11275,1798.2,1798.1,44.0078]
[1743780930722,3.2078,1798.3,1797.8,5.8846]
[1743780930928,5.98984,1798.1,1797.4,3.45413]
[1743780931128,3.2078,1798.1,1797.7,1.11304]
[1743780931331,0.00833865,1797.9,1797.5,14.31980486]
[1743780931629,1.11319,1797.5,1797.4,2.3409]
[1743780932027,0.00833865,1797.9,1797.4,13.45290486]
[1743780932229,3.2078,1797.6,1797.0,3.2078]
[1743780932535,3.2078,1797.6,1796.7,2.3642]
[1743780932536,3.2078,1797.1,1796.7,2.3642]
[1743780932731,3.2078,1797.0,1796.6,3.2078]
[1743780932936,1.11366,1796.8,1796.7,13.66730486]
[1743780933137,2.78344,1797.2,1796.7,2.5553]
[1743780933335,1.12189865,1796.9,1796.8,11.11200486]
[1743780933635,0.00833865,1796.9,1796.8,11.11200486]
[1743780933825,0.00833865,1796.9,1796.8,15.43342486]
[1743780934029,0.55680001,1797.4,1796.8,16.81980486]
[1743780934232,3.76460001,1797.4,1796.9,13.66730486]
[1743780934631,3.76460001,1797.4,1796.9,2.5553]
[1743780934632,4.3213,1797.0,1796.9,2.5553]